bitfinex-derivatives/quotes_SOLF0:USTF0_20220101
["timestamp","ask_amount","ask_price","bid_price","bid_amount"]
[1641077912951,3.99547926,177.28,177.21,1.99160005]
[1641077913749,31.7136,177.29,177.21,1.99160005]
[1641077914850,3.99547971,177.28,177.21,1.99160005]
[1641077915752,31.7136,177.29,177.21,1.99160005]
[1641077916351,3.99216526,177.28,177.21,1.99160005]
[1641077917050,31.7136,177.29,177.21,1.99160005]
[1641077917551,3.9922642,177.28,177.21,1.99160005]
[1641077918353,31.7136,177.29,177.21,1.99160005]
[1641077918552,31.7136,177.29,177.21,21.9784192]
[1641077918752,3.99189043,177.3,177.21,21.9784192]
[1641077919654,32.01,177.31,177.21,21.9784192]
[1641077919855,4.00641049,177.27,177.23,12.01909026]
[1641077920655,32.01,177.31,177.23,12.01909026]
[1641077921058,4.00641257,177.27,177.23,12.01909026]
[1641077921956,32.01,177.31,177.23,12.01909026]
[1641077922758,4.0064464,177.27,177.23,12.01909026]
[1641077923360,32.01,177.31,177.23,12.01909026]
[1641077924058,4.00640684,177.27,177.23,12.01909026]
[1641077924459,4.803,177.3,177.23,12.01909026]
[1641077925466,4.00646004,177.27,177.23,12.01909026]
[1641077926371,4.803,177.3,177.23,12.01909026]
[1641077926572,4.00667025,177.26,177.22,12.01909026]
[1641077927774,2.0096733,177.29,177.22,12.01909026]
[1641077928375,4.00672191,177.26,177.22,12.01909026]
[1641077929780,12.02016573,177.3,177.22,12.01909026]
[1641077929979,14.02973306,177.3,177.22,12.01909026]
[1641077930480,4.00654523,177.27,177.23,12.01909026]
[1641077931081,2.0094275,177.3,177.23,12.01909026]
[1641077931780,4.00652244,177.27,177.23,12.01909026]
[1641077932982,2.00938326,177.3,177.23,21.9784192]
[1641077933182,2.00938326,177.3,177.23,24.9784192]
[1641077933684,4.00653815,177.27,177.24,1.99160005]
[1641077934287,2.0094156,177.3,177.24,1.99160005]
[1641077935287,44.02961445,177.31,177.24,1.99160005]
[1641077935485,4.00343499,177.27,177.24,1.99160005]
[1641077935886,44.02961445,177.31,177.24,1.99160005]
[1641077936085,2.00784198,177.3,177.24,1.99160005]
[1641077936786,4.00342316,177.27,177.24,1.99160005]
[1641077937586,44.02961445,177.31,177.24,1.99160005]
[1641077937885,4.00342167,177.28,177.24,1.99160005]
[1641077938385,4.0034279,177.27,177.24,1.99160005]
[1641077939088,2.00785166,177.3,177.24,1.99160005]
[1641077940090,4.00344019,177.27,177.24,1.99160005]
[1641077940790,4.00342504,177.28,177.24,1.99160005]
[1641077941590,32.01,177.31,177.24,1.99160005]
[1641077941792,4.00651722,177.27,177.24,1.99160005]
[1641077942592,2.00932403,177.3,177.24,1.99160005]
[1641077943393,4.00645247,177.27,177.24,1.99160005]
[1641077943892,2.00932141,177.3,177.24,1.99160005]
[1641077944793,32.01,177.31,177.24,1.99160005]
[1641077944993,4.00645979,177.27,177.24,1.99160005]
[1641077945594,32.01,177.31,177.24,1.99160005]
[1641077945793,7.64959539,177.3,177.24,1.99160005]
[1641077946396,5.64031699,177.3,177.24,1.99160005]
[1641077946596,4.00701499,177.25,177.21,22.00736438]
[1641077947396,14.03098627,177.29,177.21,22.00736438]
[1641077947397,4.00708222,177.24,177.21,1.99160005]
[1641077947596,9.94108222,177.24,177.21,1.99160005]
[1641077948399,5.934,177.24,177.21,1.99160005]
[1641077948599,5.934,177.24,177.21,12.01909026]
[1641077949099,4.00725096,177.23,177.19,22.00758011]
[1641077950000,5.934,177.24,177.19,22.00758011]
[1641077950600,4.00727485,177.23,177.19,22.00758011]
[1641077951302,5.934,177.24,177.19,22.00758011]
[1641077952102,4.00735984,177.23,177.19,22.00758011]
[1641077952601,5.934,177.24,177.19,22.00758011]
[1641077952801,41.53177952,177.27,177.19,22.00758011]
[1641077953404,4.00731605,177.23,177.19,22.00758011]
[1641077953903,29.5097,177.27,177.19,22.00758011]
[1641077954904,4.00734567,177.23,177.19,22.00758011]
[1641077955408,41.53173702,177.27,177.19,22.00758011]
[1641077956208,4.00733179,177.23,177.19,22.00758011]
[1641077957008,2.01028977,177.26,177.19,22.00758011]
[1641077957009,29.5097,177.27,177.19,22.00758011]
[1641077957211,4.00718794,177.24,177.2,12.01909026]
[1641077957911,2.0101131,177.26,177.2,12.01909026]
[1641077958410,4.00722108,177.24,177.2,12.01909026]
[1641077958616,10.38922108,177.24,177.2,12.01909026]
[1641077959213,6.382,177.24,177.2,12.01909026]
[1641077959815,10.38930341,177.24,177.2,12.01909026]
[1641077960413,6.382,177.24,177.2,12.01909026]
[1641077961019,10.38931415,177.24,177.2,12.01909026]
[1641077961720,6.382,177.24,177.2,12.01909026]
[1641077962421,10.38929069,177.24,177.2,12.01909026]
[1641077963021,6.382,177.24,177.2,14.01069031]
[1641077963222,6.382,177.24,177.2,17.01069031]
[1641077963621,29.5097,177.27,177.2,17.01069031]
[1641077963820,4.00721758,177.24,177.21,1.99160005]
[1641077964420,2.01014246,177.26,177.21,1.99160005]
[1641077965123,29.5097,177.27,177.21,1.99160005]
[1641077965323,4.00719071,177.24,177.21,1.99160005]
[1641077965823,8.31913994,177.26,177.21,1.99160005]
[1641077966424,4.00718929,177.24,177.21,1.99160005]
[1641077967127,6.309,177.26,177.21,1.99160005]
[1641077967732,4.00714627,177.24,177.21,1.99160005]
[1641077968629,29.5097,177.27,177.21,1.99160005]
[1641077969431,4.00716788,177.24,177.21,1.99160005]
[1641077969931,29.5097,177.27,177.21,1.99160005]
[1641077970633,4.00715694,177.24,177.21,1.99160005]
[1641077971231,29.5097,177.27,177.21,1.99160005]
[1641077972336,4.007143,177.24,177.21,1.99160005]
[1641077973434,29.5097,177.27,177.21,1.99160005]
[1641077974534,4.00713259,177.24,177.21,1.99160005]
[1641077975237,2.01007175,177.25,177.21,1.99160005]
[1641077975939,5.622,177.26,177.21,1.99160005]
[1641077976138,4.00713057,177.24,177.21,1.99160005]
[1641077976539,2.01007572,177.25,177.21,1.99160005]
[1641077977341,5.6423856,177.23,177.2,12.01909026]
[1641077978241,12.02549974,177.21,177.15,1.99160005]
[1641077978940,4.00857427,177.17,177.15,1.99160005]
[1641077979141,4.00857427,177.17,177.14,1.99160005]
[1641077980343,30.531,177.21,177.14,1.99160005]
[1641077980543,2.01157471,177.2,177.14,1.99160005]
[1641077981145,30.531,177.21,177.14,1.99160005]
[1641077981345,4.00856889,177.17,177.14,1.99160005]
[1641077981744,30.531,177.21,177.14,1.99160005]
[1641077982045,4.00855932,177.18,177.14,22.00818122]
[1641077982244,4.00855932,177.18,177.14,25.00818122]
[1641077982446,5.932e-05,177.18,177.17,3.0]
[1641077982646,12.02567796,177.21,177.17,3.0]
[1641077983349,8.03689357,177.22,177.17,3.0]
[1641077983548,37.69239846,177.25,177.13,46.17949026]
[1641077983549,14.03523477,177.24,177.18,1.99160005]
[1641077983747,14.03523477,177.24,177.22,3.0]
[1641077984347,2.01108114,177.24,177.22,3.0]
[1641077984547,5.64174894,177.25,177.22,3.0]
[1641077985149,2.01056986,177.24,177.22,3.0]
[1641077986354,5.64174894,177.25,177.22,3.0]
[1641077986952,2.01055069,177.24,177.22,3.0]
[1641077987653,5.64174894,177.25,177.22,3.0]
[1641077988655,1.9744732,177.24,177.23,2.03306283]
[1641077989453,5.64174894,177.25,177.23,2.03306283]
[1641077990155,1.97443741,177.24,177.23,2.03306283]
[1641077991252,5.64174894,177.25,177.23,2.03306283]
[1641077991855,1.97444505,177.24,177.23,2.03306283]
[1641077993053,5.64174894,177.25,177.23,2.03306283]
[1641077993656,1.97438327,177.24,177.23,2.03306283]
[1641077994658,5.64174894,177.25,177.23,2.03306283]
[1641077995260,1.97436297,177.24,177.23,2.03306283]
[1641077995860,5.64174894,177.25,177.23,2.03306283]
[1641077996562,1.97436387,177.24,177.23,2.03306283]
[1641077997063,5.64174894,177.25,177.23,2.03306283]
[1641077998065,5.64174894,177.25,177.22,3.0]
[1641077998564,30.0211,177.27,177.22,3.0]
[1641077998764,39.66362625,177.28,177.22,3.0]
[1641077999466,2.02116237,177.27,177.22,3.0]
[1641078000166,2.02116237,177.27,177.18,3.0]
[1641078000368,2.02116237,177.27,177.17,43.50119026]
[1641078000770,14.01999862,177.27,177.18,1.97843916]
[1641078004969,14.01999862,177.27,177.23,3.0]
[1641078005171,14.01999862,177.27,177.18,4.97843916]
[1641078005370,14.01999862,177.27,177.24,3.0]
[1641078005571,32.05064952,177.31,177.19,16.99752942]
[1641078005572,11.99883625,177.29,177.19,16.99752942]
[1641078005973,11.99883625,177.29,177.2,27.66479]
[1641078006273,11.99883625,177.29,177.27,3.0]
[1641078006675,2.02116237,177.31,177.22,30.403]
[1641078006876,2.02116237,177.31,177.25,3.0]
[1641078007479,2.02116237,177.31,177.22,30.403]
[1641078007778,14.01999862,177.31,177.26,4.97843916]
[1641078008386,14.01999862,177.31,177.27,1.97843916]
[1641078009784,14.01999862,177.31,177.23,21.93966175]
[1641078010384,14.01999862,177.31,177.24,3.0]
[1641078010788,14.01999862,177.31,177.26,3.0]
[1641078010987,14.01999862,177.31,177.23,21.93966175]
[1641078011586,2.02116237,177.31,177.24,12.01909026]
[1641078011787,2.02116237,177.31,177.25,3.0]
[1641078012087,2.02116237,177.31,177.26,3.0]
[1641078012490,2.02116237,177.31,177.24,12.01909026]
[1641078012689,14.01999862,177.31,177.26,1.97843916]
[1641078013388,14.01999862,177.31,177.28,3.0]
[1641078013590,14.01999862,177.31,177.23,21.93966175]
[1641078013788,14.01999862,177.31,177.28,3.0]
[1641078013988,11.99883625,177.31,177.28,3.0]
[1641078014289,27.66479,177.32,177.28,3.0]
[1641078014791,27.66479,177.32,177.23,29.64322916]
[1641078014991,27.66479,177.32,177.23,27.66479]
[1641078015689,27.66479,177.32,177.24,1.97258249]
[1641078015889,27.66479,177.32,177.28,3.0]
[1641078016289,27.66479,177.32,177.24,1.97258249]
[1641078016491,27.66479,177.32,177.23,27.66479]
[1641078017193,27.66479,177.32,177.24,1.97258095]
[1641078017994,27.66479,177.32,177.23,27.66479]
[1641078018696,27.66479,177.32,177.24,1.97258273]
[1641078020196,27.66479,177.32,177.26,3.0]
[1641078020595,27.66479,177.32,177.24,1.97258273]
[1641078020795,2.01398564,177.31,177.22,148.98324433]
[1641078020996,2.01398564,177.31,177.27,3.0]
[1641078021197,2.01398564,177.31,177.25,3.0]
[1641078021396,6.80998564,177.31,177.25,3.0]
[1641078021595,4.796,177.31,177.25,3.0]
[1641078024001,3.20560047,177.3,177.25,3.0]
[1641078024400,5.22020529,177.3,177.25,3.0]
[1641078024900,2.01460482,177.3,177.25,3.0]
[1641078025102,2.01460482,177.29,177.25,3.0]
[1641078025402,2.01460482,177.29,177.22,148.98324433]
[1641078025801,2.01460482,177.29,177.25,3.0]
[1641078026001,2.01460482,177.3,177.25,3.0]
[1641078027503,11.99883625,177.29,177.25,3.0]
[1641078031104,11.99883625,177.29,177.22,148.98324433]
[1641078032006,14.01344107,177.29,177.23,1.98239774]
[1641078034008,2.01460482,177.29,177.23,1.98239774]
[1641078036808,2.01460482,177.29,177.27,3.0]
[1641078037009,2.01460482,177.29,177.28,3.0]
[1641078037209,4.82e-06,177.29,177.28,3.0]
[1641078037409,4.796,177.31,177.28,3.0]
[1641078042915,3.99672809,177.3,177.28,3.0]
[1641078043715,3.99672809,177.3,177.22,42.42209026]
[1641078043915,3.99672809,177.3,177.22,45.42209026]
[1641078044117,3.99672809,177.3,177.22,42.42209026]
[1641078044318,3.99672809,177.3,177.22,45.42209026]
[1641078044619,3.99672809,177.26,177.22,45.42209026]
[1641078045218,3.99672809,177.25,177.22,33.403]
[1641078046122,3.99672809,177.25,177.22,3.0]
[1641078047120,3.99672809,177.25,177.2,15.01909026]
[1641078050222,3.99672809,177.26,177.21,12.01909026]
[1641078050623,3.99672809,177.26,177.24,3.0]
[1641078050924,3.99672809,177.26,177.22,3.0]
[1641078051625,3.99672809,177.23,177.19,20.02515652]
[1641078052424,27.66479,177.22,177.19,20.02515652]
[1641078053225,27.66479,177.22,177.16,3.0]
[1641078053625,27.66479,177.22,177.14,12.01909026]
[1641078054227,4.00704552,177.18,177.13,20.02515652]
[1641078055328,4.00704552,177.18,177.14,12.01909026]
[1641078056430,4.00704552,177.18,177.17,3.0]
[1641078056831,11.99883625,177.22,177.17,3.0]
[1641078056832,11.99883625,177.22,177.17,6.0]
[1641078057032,11.99883625,177.22,177.21,3.0]
[1641078057234,11.99883625,177.22,177.13,11.00606626]
[1641078057432,39.5053,177.3,177.14,32.05060786]
[1641078057433,11.99883625,177.26,177.14,32.05060786]
[1641078057632,11.99883625,177.26,177.22,3.0]
[1641078057834,11.99883625,177.26,177.2,3.0]
[1641078058034,11.99883625,177.26,177.22,3.0]
[1641078058234,11.99883625,177.27,177.22,3.0]
[1641078059140,11.99883625,177.27,177.18,12.01788986]
[1641078059536,11.99883625,177.27,177.21,3.0]
[1641078059738,11.99883625,177.27,177.18,12.01788986]
[1641078059942,11.99883625,177.27,177.18,15.01788986]
[1641078060140,3.2063896,177.26,177.19,3.0]
[1641078060537,3.2063896,177.26,177.18,12.01788986]
[1641078060940,3.2063896,177.26,177.14,32.05060786]
[1641078060941,15.51029769,177.26,177.17,3.0]
[1641078061140,42.51683625,177.25,177.16,12.01788986]
[1641078061544,5.64365935,177.2,177.16,12.01788986]
[1641078061743,4.0,177.23,177.16,12.01788986]
[1641078061942,5.64413715,177.19,177.14,12.01788986]
[1641078062340,27.66479,177.16,177.14,12.01788986]
[1641078063741,27.66479,177.16,177.1,15.01788986]
[1641078063940,21.24958496,177.16,177.1,15.01788986]
[1641078065240,21.24958496,177.16,177.1,12.01788986]
[1641078065640,21.24958496,177.16,177.09,12.01788986]
[1641078066139,21.24958496,177.16,177.1,3.0]
[1641078066340,21.24958496,177.16,177.09,12.01788986]
[1641078066540,21.24958496,177.16,177.11,12.01788986]
[1641078066843,21.24958496,177.16,177.13,3.0]
[1641078071643,21.24958496,177.16,177.1,12.01788986]
[1641078071845,11.99883625,177.18,177.1,3.0]
[1641078071846,31.3469,177.18,177.1,3.0]
[1641078072045,31.3469,177.18,177.15,3.0]
[1641078072243,27.66479,177.19,177.14,3.0]
[1641078072444,5.64286319,177.23,177.14,3.0]
[1641078072846,8.85039366,177.22,177.14,3.0]
[1641078073346,8.85055289,177.21,177.14,3.0]
[1641078073749,5.64334086,177.21,177.14,3.0]
[1641078073950,5.64334086,177.21,177.12,3.0]
[1641078075754,5.64334086,177.21,177.18,3.0]
[1641078076154,27.66479,177.23,177.18,3.0]
[1641078076353,27.66479,177.23,177.14,3.0]
[1641078076754,3.20707214,177.22,177.14,3.0]
[1641078078260,3.20707214,177.22,177.15,1.9786693]
[1641078078455,11.99883625,177.2,177.15,1.9786693]
[1641078079163,14.02899942,177.21,177.15,1.9786693]
[1641078079762,11.99883625,177.2,177.15,1.9786693]
[1641078081765,2.03016317,177.21,177.15,1.9786693]
[1641078085667,2.03016317,177.21,177.16,3.0]
[1641078086767,2.03016317,177.21,177.12,3.0]
[1641078086968,27.66479,177.13,177.11,12.01788986]
[1641078087367,27.66479,177.13,177.11,9.01788986]
[1641078087569,27.66479,177.13,177.1,7.93116867]
[1641078087570,27.66479,177.13,177.1,4.94905853]
[1641078087769,27.66479,177.13,177.04,3.0]
[1641078087969,2.03016317,177.12,177.04,3.0]
[1641078088369,2.03016317,177.12,177.02,3.0]
[1641078088570,2.03016317,177.12,176.99,62.05050786]
[1641078088870,8.63316317,177.12,176.99,29.9999]
[1641078089269,5.64700568,177.1,176.99,29.9999]
[1641078089669,5.64700568,177.1,177.03,3.0]
[1641078089870,5.64700568,177.1,176.99,29.9999]
[1641078090071,2.03016317,177.09,177.0,1.7950346]
[1641078090775,2.03016317,177.09,177.01,3.0]
[1641078091373,2.03016317,177.09,177.02,1.7950346]
[1641078091574,5.64748405,177.08,177.02,1.7950346]
[1641078091977,2.03016317,177.09,177.02,1.7950346]
[1641078092173,7.67812567,177.07,177.01,1.7950346]
[1641078092977,2.03016317,177.06,177.0,1.7950346]
[1641078093580,2.03016317,177.06,176.99,1.7950346]
[1641078095480,2.03016317,177.06,177.02,3.0]
[1641078095681,2.03016317,177.06,177.0,3.0]
[1641078096381,2.03016317,177.06,176.98,1.7950346]
[1641078096583,2.03016317,177.06,177.0,3.0]
[1641078096982,2.03016317,177.06,176.97,29.4791]
[1641078098186,2.03016317,177.06,176.98,1.79496801]
[1641078099187,27.66479,177.05,176.98,1.79496801]
[1641078100088,2.03016317,177.04,176.98,4.79496801]
[1641078100890,2.03016317,177.04,176.99,1.79496801]
[1641078102290,27.66479,177.05,176.97,29.4791]
[1641078102490,27.66479,177.05,176.98,3.0]
[1641078103793,27.66479,177.05,176.97,29.4791]
[1641078104092,27.66479,177.05,176.98,3.0]
[1641078105094,27.66479,177.02,176.98,3.0]
[1641078108803,27.66479,177.02,176.93,30.5588]
[1641078109003,27.66479,177.02,176.99,3.0]
[1641078109202,27.66479,177.05,176.99,3.0]
[1641078109903,35.92479,177.05,176.99,3.0]
[1641078110303,35.92479,177.05,176.93,33.5588]
[1641078110504,35.92479,177.05,177.01,3.0]
[1641078110706,35.92479,177.05,176.99,3.0]
[1641078111409,10.79190794,177.04,176.99,3.0]
[1641078113308,27.66479,177.0,176.99,3.0]
[1641078114110,29.87847212,177.0,176.99,3.0]
[1641078114309,34.42247212,177.0,176.93,30.5588]
[1641078114711,6.75768212,177.0,176.93,30.5588]
[1641078114911,2.21368212,176.99,176.94,1.79889919]
[1641078117021,2.21368212,176.99,176.97,3.0]
[1641078117222,2.21368212,176.99,176.95,3.0]
[1641078117419,4.01287751,176.98,176.96,3.0]
[1641078117617,1.79927751,176.98,176.96,3.0]
[1641078118118,2.21368212,176.99,176.96,3.0]
[1641078118318,2.21368212,177.04,176.97,13.83539695]
[1641078118518,2.21368212,177.04,176.99,3.0]
[1641078118720,2.21368212,177.04,176.99,5.227]
[1641078119319,2.21368212,177.04,177.0,1.79889919]
[1641078120122,14.25017988,177.07,177.0,1.79889919]
[1641078120821,14.25017988,177.07,176.99,21.30771899]
[1641078124725,12.03649776,177.06,176.99,1.79889919]
[1641078125324,16.84349776,177.06,176.99,1.79889919]
[1641078125524,7.02068212,177.06,176.99,1.79889919]
[1641078126225,2.21368212,177.05,176.99,1.79889919]
[1641078127127,16.8400064,177.06,176.99,1.79889919]
[1641078127728,2.19256044,177.05,176.99,1.79889919]
[1641078128528,16.8400064,177.06,176.99,1.79889919]
[1641078129430,2.19257743,177.05,176.99,1.79889919]
[1641078130130,16.8400064,177.06,176.99,1.79889919]
[1641078131131,2.19252776,177.05,176.99,1.79889919]
[1641078131936,16.8400064,177.06,176.99,1.79889919]
[1641078132835,2.19307782,177.05,176.99,1.79889919]
[1641078133537,16.8400064,177.06,176.99,1.79889919]
[1641078134235,2.19301724,177.05,176.99,1.79889919]
[1641078134937,16.8400064,177.06,176.99,1.79889919]
[1641078135437,2.19302117,177.05,176.99,1.79889919]
[1641078136137,16.8400064,177.06,176.99,4.79889919]
[1641078137040,2.19292374,177.05,177.0,1.79889919]
[1641078137842,16.8400064,177.06,177.0,1.79889919]
[1641078138542,2.19288599,177.05,177.0,1.79889919]
[1641078139341,4.807,177.06,177.0,1.79889919]
[1641078139544,12.03553091,177.06,177.0,1.79889919]
[1641078140142,34.564403,177.07,176.99,1.79889919]
[1641078140342,2.19293486,177.06,176.99,1.79889919]
[1641078141047,12.03547498,177.06,176.99,1.79889919]
[1641078141444,34.564403,177.07,176.99,1.79889919]
[1641078141645,2.1929073,177.06,176.99,1.79889919]
[1641078142149,14.2283904,177.06,176.99,1.79889919]
[1641078142347,18.6723904,177.06,176.99,1.79889919]
[1641078142547,18.6723904,177.06,177.02,3.0]
[1641078142749,18.6723904,177.06,177.01,3.0]
[1641078143148,18.6723904,177.06,177.02,3.0]
[1641078143650,14.2283904,177.06,177.02,3.0]
[1641078143848,2.1929073,177.05,177.03,1.79889919]
[1641078144448,2.1929073,177.05,177.03,4.79889919]
[1641078144851,12.0333286,177.09,177.03,3.0]
[1641078145451,10.83952496,177.1,177.04,1.79889919]
[1641078146151,12.03313829,177.09,177.04,1.79889919]
[1641078146953,10.83952496,177.1,177.03,1.79889919]
[1641078147654,12.03305393,177.09,177.03,1.79889919]
[1641078148455,14.25971094,177.1,177.03,1.79889919]
[1641078151458,12.0327695,177.09,177.03,1.79889919]
[1641078151859,12.0327695,177.09,177.05,3.0]
[1641078152058,10.83916406,177.1,177.03,1.79889919]
[1641078152259,2.22694144,177.08,177.04,3.0]
[1641078152560,12.03251631,177.1,177.04,3.0]
[1641078152959,27.66479,177.13,177.04,3.0]
[1641078153163,2.14659224,177.12,177.04,3.0]
[1641078153360,2.14659224,177.12,177.03,7.64308795]
[1641078153861,27.66479,177.13,177.02,58.91179]
[1641078154261,27.66479,177.13,177.02,61.91179]
[1641078155161,27.66479,177.13,177.02,58.91179]
[1641078155361,31.7844,177.12,177.02,58.91179]
[1641078155563,31.7844,177.12,177.04,3.0]
[1641078155861,31.7844,177.12,177.05,3.0]
[1641078156063,31.7844,177.12,177.03,7.43148544]
[1641078156460,25.36792936,177.12,177.03,7.43148544]
[1641078160862,27.66479,177.13,177.03,7.43148544]
[1641078161463,27.66479,177.13,177.03,10.43148544]
[1641078161965,27.66479,177.13,177.03,7.43148544]
[1641078162167,27.66479,177.13,177.03,10.43148544]
[1641078163167,27.66479,177.13,177.03,7.43148544]
[1641078165270,27.66479,177.13,177.03,10.43148544]
[1641078165571,27.66479,177.13,177.06,3.0]
[1641078165770,27.66479,177.13,177.05,3.0]
[1641078165971,27.66479,177.13,177.04,3.0]
[1641078168073,27.66479,177.13,177.05,27.66479]
[1641078168872,27.66479,177.13,177.06,7.43148544]
[1641078169072,27.66479,177.13,177.06,37.55008544]
[1641078169674,27.66479,177.13,177.06,30.1186]
[1641078178380,31.66641577,177.13,177.06,33.1186]
[1641078180386,31.66641577,177.13,177.09,3.0]
[1641078180584,4.00162577,177.13,177.06,30.1186]
[1641078180787,4.00162577,177.14,177.07,10.52704308]
[1641078181184,4.00162577,177.14,177.08,3.0]
[1641078181386,4.00162577,177.15,177.08,3.0]
[1641078181583,4.00162577,177.15,177.07,10.52704308]
[1641078181986,4.00162577,177.15,177.09,3.0]
[1641078182185,4.00162577,177.14,177.09,3.0]
[1641078182786,4.00162577,177.15,177.09,3.0]
[1641078183691,4.00162577,177.14,177.1,12.00327311]
[1641078185390,4.00162577,177.14,177.1,19.53031619]
[1641078187088,4.00162577,177.14,177.1,22.53031619]
[1641078187488,4.00162577,177.14,177.1,19.53031619]
[1641078187789,4.00162577,177.15,177.11,12.00327311]
[1641078188589,4.00162577,177.15,177.11,19.53031619]
[1641078189390,4.00162577,177.14,177.1,42.11537311]
[1641078190392,4.00162577,177.13,177.1,30.1121]
[1641078191191,4.00162577,177.14,177.1,12.00327311]
[1641078191392,4.00162577,177.14,177.1,43.02477311]
[1641078191895,4.00162577,177.14,177.1,46.02477311]
[1641078192094,4.00162577,177.14,177.13,3.0]
[1641078192293,4.00162577,177.14,177.1,43.02477311]
[1641078192492,4.00162577,177.14,177.13,3.0]
[1641078193492,4.00162577,177.14,177.13,4.82604187]
[1641078193994,4.00162577,177.14,177.13,1.82604187]
[1641078194195,4.00162577,177.14,177.1,12.00327311]
[1641078194595,4.00162577,177.14,177.06,32.05060786]
[1641078194596,3.0,177.12,177.06,32.05060786]
[1641078194799,27.66479,177.1,177.06,32.05060786]
[1641078195195,27.66479,177.1,176.99,10.25498449]
[1641078195995,27.66479,177.1,176.99,7.25498449]
[1641078196597,27.66479,177.1,176.97,3.0]
[1641078196598,4.01135014,177.02,176.94,48.66109033]
[1641078196799,4.01135014,177.02,176.96,3.0]
[1641078197198,4.01135014,177.02,176.95,3.0]
[1641078197397,4.01135014,177.02,176.94,48.66109033]
[1641078197797,4.01135014,177.01,176.95,7.25498449]
[1641078200001,4.01135014,177.01,176.94,27.66479]
[1641078200201,4.01135014,177.01,176.91,3.0]
[1641078200400,4.01135014,176.98,176.91,3.0]
[1641078201604,4.01135014,176.97,176.91,9.83024772]
[1641078202804,4.01135014,176.96,176.91,3.0]
[1641078203905,27.66479,177.02,176.91,3.0]
[1641078206410,4.01135014,176.98,176.91,3.0]
[1641078209011,4.01135014,176.97,176.91,3.0]
[1641078210012,4.01135014,176.97,176.93,3.0]
[1641078210214,4.01135014,176.97,176.92,3.0]
[1641078210616,4.01135014,176.99,176.93,3.0]
[1641078210814,4.01135014,176.99,176.92,3.0]
[1641078211215,4.01135014,177.0,176.92,3.0]
[1641078211817,4.01135014,176.99,176.92,3.0]
[1641078212218,4.01135014,176.99,176.93,3.0]
[1641078212619,4.01135014,176.99,176.92,3.0]
[1641078213218,4.01135014,176.99,176.93,3.0]
[1641078213619,4.01135014,177.0,176.93,3.0]
[1641078215324,4.01135014,177.0,176.94,3.0]
[1641078215521,4.01135014,177.0,176.92,17.52347536]
[1641078215724,5.014e-05,177.0,176.98,3.0]
[1641078216022,5.014e-05,177.0,176.99,3.0]
[1641078216423,5.014e-05,177.0,176.99,8.64397788]
[1641078217625,31.3485,177.12,176.99,8.64397788]
[1641078217827,31.3485,177.12,176.99,5.64397788]
[1641078218026,31.3485,177.12,177.0,3.0]
[1641078218223,31.3485,177.12,177.02,3.0]
[1641078218424,32.09503691,177.14,176.99,8.64397788]
[1641078218625,3.0,177.12,176.99,12.47419732]
[1641078218825,27.66479,177.11,176.99,6.83021944]
[1641078219426,9.11860652,177.1,176.99,6.83021944]
[1641078219626,9.11860652,177.1,176.99,9.83021944]
[1641078222428,9.11860652,177.1,176.99,6.83021944]
[1641078223231,9.11860652,177.1,176.99,9.83021944]
[1641078223430,12.11860652,177.1,176.99,6.83021944]
[1641078223729,14.71660652,177.1,176.99,6.83021944]
[1641078223930,5.598,177.1,176.98,27.66479]
[1641078224430,8.598,177.1,176.98,27.66479]
[1641078224729,17.56222182,177.1,176.98,27.66479]
[1641078224930,17.56222182,177.1,176.97,3.0]
[1641078225831,5.598,177.1,176.97,3.0]
[1641078226632,3.0,177.08,176.95,27.66479]
[1641078226831,27.66479,177.02,176.95,27.66479]
[1641078227032,27.66479,177.02,176.94,41.68792182]
[1641078227231,27.66479,177.02,176.94,29.7237]
[1641078227633,27.66479,177.04,176.94,29.7237]
[1641078230836,45.05882182,177.08,176.97,27.66479]
[1641078232541,42.05882182,177.08,176.97,27.66479]
[1641078232740,14.96422182,177.07,176.97,27.66479]
[1641078232941,3.0,177.03,176.97,27.66479]
[1641078233140,3.0,177.01,176.97,27.66479]
[1641078233341,3.0,177.02,176.92,27.66479]
[1641078233543,3.0,177.02,176.91,11.96422182]
[1641078233740,11.96422182,177.0,176.92,11.96422182]
[1641078234842,11.96422182,176.99,176.91,11.96422182]
[1641078235948,14.440552,176.99,176.91,11.96422182]
[1641078237145,14.440552,176.99,176.92,3.0]